[Event "Anderssen Festival 2019"]
[Site "Wroclaw"]
[Date "2019.08.06"]
[Round "3.12"]
[White "Mitchell, Martin"]
[Black "Ochman, Sebastian"]
[Result "1-0"]
[ECO "A43"]
[WhiteElo "2218"]
[BlackElo "1789"]
[Annotator "NA"]
[PlyCount "111"]
[EventDate "2019.08.05"]
[EventType "swiss"]
[EventCountry "POL"]
[SourceTitle "playchess.com"]
[Source "ChessBase"]
[SourceQuality "1"]
[TimeControl "40/5400+30:900+30"]

1. d4 {[%emt 0:00:00]} c5 {[%emt 0:00:00]} 2. d5 {[%emt 0:00:07]} f5 {[%emt 0:00:03]} 3. c4 {[%emt 0:04:14]} Nf6 {[%emt 0:03:08]} 4. Nc3 {[%emt 0:02:00]} g6 {[%emt 0:00:36]} 5. Nh3 {[%emt 0:05:13]} Bg7 {[%emt 0:01:30]} 6. Nf4 {[%emt 0:02:17]} O-O {[%emt 0:06:30]} 7. h4 {[%emt 0:02:10]} e5 {[%emt 0:06:03]} 8. dxe6 {[%emt 0:03:19]} dxe6 {[%emt 0:00:09]} 9. Qxd8 {[%emt 0:13:44]} Rxd8 {[%emt 0:03:04]} 10. g3 {[%emt 0:00:22]} Nc6 {[%emt 0:20:24]} 11. Bg2 {[%emt 0:00:26]} Nb4 {[%emt 0:04:10]} 12. O-O {[%emt 0:01:08]} e5 {[%emt 0:01:26]} 13. Nfd5 {[%emt 0:01:26]} e4 {[%emt 0:00:41]} 14. Bg5 {[%emt 0:04:12]} Kf7 {[%emt 0:11:41]} 15. Nxb4 {[%emt 0:04:17]} cxb4 {[%emt 0:00:12]} 16. Nd5 {[%emt 0:01:02]} Be6 {[%emt 0:13:27]} 17. f3 {[%emt 0:07:48]} exf3 {[%emt 0:04:44]} 18. Bxf3 {[%emt 0:00:24]} Rd7 {[%emt 0:02:02]} 19. Rad1 {[%emt 0:03:44]} Bxd5 {[%emt 0:06:50]} 20. cxd5 {[%emt 0:01:02]} Re8 {[%emt 0:04:27]} 21. d6 {[%emt 0:03:58]} Ke6 {[%emt 0:03:19]} 22. Rd4 {[%emt 0:03:06]} Rxd6 {[%emt 0:01:07]} 23. Rxb4 {[%emt 0:00:33]} b6 {[%emt 0:00:26]} 24. Rc1 {[%emt 0:02:16]} Red8 {[%emt 0:01:06]} 25. Rc7 {[%emt 0:01:30]} R8d7 {[%emt 0:00:13]} 26. Rbc4 {[%emt 0:06:19]} Nd5 {[%emt 0:00:37]} 27. Rxd7 {[%emt 0:09:19]} Kxd7 {[%emt 0:00:03]} 28. b3 {[%emt 0:09:11]} b5 {[%emt 0:00:13]} 29. Rc1 {[%emt 0:00:48]} Be5 {[%emt 0:01:33]} 30. Kg2 {[%emt 0:01:48]} Nc3 {[%emt 0:00:22]} 31. Rc2 {[%emt 0:01:15]} b4 {[%emt 0:00:19]} 32. Be3 {[%emt 0:04:02]} a6 {[%emt 0:00:36]} 33. Bc5 {[%emt 0:00:14]} Rd1 {[%emt 0:03:45]} 34. Bxb4 {[%emt 0:00:19]} Nd5 {[%emt 0:00:24]} 35. Rd2 {[%emt 0:00:52]} Rxd2 {[%emt 0:00:38]} 36. Bxd2 {[%emt 0:00:03]} Nc3 {[%emt 0:00:23]} 37. a3 {[%emt 0:01:32]} Nb5 {[%emt 0:01:45]} 38. a4 {[%emt 0:01:19]} Nd4 {[%emt 0:00:02]} 39. b4 {[%emt 0:01:06]} Kc7 {[%emt 0:01:00]} 40. Kf2 {[%emt 0:00:00]} Nc2 {[%emt 0:00:00]} 41. Bd5 {[%emt 0:02:14]} Bd4+ {[%emt 0:03:43]} 42. e3 {[%emt 0:00:46]} Bf6 {[%emt 0:01:08]} 43. Bg8 {[%emt 0:01:21]} h6 {[%emt 0:00:49]} 44. Bh7 {[%emt 0:00:26]} Be7 {[%emt 0:01:28]} 45. Bxg6 {[%emt 0:00:35]} Nxb4 {[%emt 0:00:04]} 46. Bxf5 {[%emt 0:00:52]} Nd5 {[%emt 0:00:32]} 47. e4 {[%emt 0:01:13]} Nb6 {[%emt 0:00:20]} 48. Bxh6 {[%emt 0:00:37]} Nxa4 {[%emt 0:00:02]} 49. Bg7 {[%emt 0:00:21]} Nc5 {[%emt 0:02:24]} 50. h5 {[%emt 0:00:45]} Bg5 {[%emt 0:01:40]} 51. h6 {[%emt 0:00:15]} Bxh6 {[%emt 0:00:11]} 52. Bxh6 {[%emt 0:00:06]} a5 {[%emt 0:00:24]} 53. Ke3 {[%emt 0:00:39]} Kc6 {[%emt 0:00:19]} 54. Bf8 {[%emt 0:00:26]} a4 {[%emt 0:01:00]} 55. Bxc5 {[%emt 0:00:13]} Kxc5 {[%emt 0:00:08]} 56. Be6 {[%emt 0:00:18] Kd4+} 1-0

[Event "Anderssen Festival 2019"]
[Site "Wroclaw"]
[Date "2019.08.06"]
[Round "3.13"]
[White "Seredyn, Dominik"]
[Black "Nguyen, Alex Dac-Vuong"]
[Result "0-1"]
[ECO "A05"]
[WhiteElo "1737"]
[BlackElo "2267"]
[Annotator "NA"]
[PlyCount "80"]
[EventDate "2019.08.05"]
[EventType "swiss"]
[EventCountry "POL"]
[SourceTitle "playchess.com"]
[Source "ChessBase"]
[SourceQuality "1"]
[TimeControl "40/5400+30:900+30"]

1. Nf3 {[%emt 0:00:00]} Nf6 {[%emt 0:00:00]} 2. c4 {[%emt 0:00:00]} g6 {[%emt 0:00:00]} 3. Nc3 {[%emt 0:00:00]} Bg7 {[%emt 0:00:00]} 4. g3 {[%emt 0:00:00]} O-O {[%emt 0:00:00]} 5. Bg2 {[%emt 0:00:00]} d6 {[%emt 0:00:03]} 6. O-O {[%emt 0:00:07]} Nc6 {[%emt 0:00:06]} 7. d3 {[%emt 0:00:21]} e5 {[%emt 0:00:06]} 8. Rb1 {[%emt 0:01:01]} a5 {[%emt 0:00:05]} 9. a3 {[%emt 0:00:42]} h6 {[%emt 0:00:06]} 10. b4 {[%emt 0:01:51]} axb4 {[%emt 0:00:05]} 11. axb4 {[%emt 0:00:08]} Be6 {[%emt 0:00:05]} 12. Ne1 {[%emt 0:04:47]} d5 {[%emt 0:06:43]} 13. c5 {[%emt 0:03:22]} Ne7 {[%emt 0:09:14]} 14. Nc2 {[%emt 0:05:44]} d4 {[%emt 0:04:08]} 15. Ne4 {[%emt 0:01:48]} Nfd5 {[%emt 0:01:11]} 16. Bb2 {[%emt 0:03:53]} Qd7 {[%emt 0:02:37]} 17. e3 {[%emt 0:03:09]} dxe3 {[%emt 0:11:24]} 18. fxe3 {[%emt 0:01:28]} g5 {[%emt 0:24:55]} 19. d4 {[%emt 0:05:26]} f5 {[%emt 0:00:19]} 20. Nf2 {[%emt 0:07:38]} e4 {[%emt 0:04:39]} 21. Qd2 {[%emt 0:04:38]} h5 {[%emt 0:06:14]} 22. Ra1 {[%emt 0:02:44]} Nf6 {[%emt 0:03:28]} 23. Rxa8 {[%emt 0:02:24]} Rxa8 {[%emt 0:00:05]} 24. Ra1 {[%emt 0:00:04]} Rxa1+ {[%emt 0:00:09]} 25. Nxa1 {[%emt 0:00:16]} Qa4 {[%emt 0:01:38]} 26. Bf1 {[%emt 0:02:34]} Kf7 {[%emt 0:04:08]} 27. Nd1 {[%emt 0:06:41]} c6 {[%emt 0:01:54]} 28. Nc3 {[%emt 0:01:46]} Qxb4 {[%emt 0:00:08]} 29. Nxe4 {[%emt 0:00:13]} Qxd2 {[%emt 0:00:06]} 30. Nxd2 {[%emt 0:00:06]} Bd5 {[%emt 0:06:26]} 31. Nc4 {[%emt 0:03:05]} Ke6 {[%emt 0:05:20]} 32. Na5 {[%emt 0:01:52]} Ng4 {[%emt 0:00:05]} 33. Bc1 {[%emt 0:00:52]} f4 {[%emt 0:00:15]} 34. gxf4 {[%emt 0:02:41]} gxf4 {[%emt 0:00:06]} 35. Bh3 {[%emt 0:01:16]} Nf5 {[%emt 0:02:05]} 36. Bxg4 {[%emt 0:00:59]} hxg4 {[%emt 0:00:04]} 37. Kf2 {[%emt 0:00:18]} Bf6 {[%emt 0:04:47]} 38. Nxb7 {[%emt 0:05:25]} Bh4+ {[%emt 0:00:16]} 39. Ke2 {[%emt 0:00:06]} Bc4+ {[%emt 0:00:39]} 40. Kd1 {[%emt 0:00:00]} f3 {[%emt 0:00:00]} 0-1

[Event "Anderssen Festival 2019"]
[Site "Wroclaw"]
[Date "2019.08.06"]
[Round "3.14"]
[White "Gluch, Pawel"]
[Black "Malecki, Rafal"]
[Result "0-1"]
[ECO "B00"]
[WhiteElo "1739"]
[BlackElo "2063"]
[Annotator "NA"]
[PlyCount "42"]
[EventDate "2019.08.05"]
[EventType "swiss"]
[EventCountry "POL"]
[SourceTitle "playchess.com"]
[Source "ChessBase"]
[SourceQuality "1"]
[TimeControl "40/5400+30:900+30"]

1. e4 d6 2. d4 g6 3. Nf3 Nf6 4. Nbd2 Bg7 5. Bc4 O-O 6. Qe2 Nc6 7. O-O Nh5 8. Nb3 Bg4 9. c3 e5 10. Be3 Kh8 11. h3 Bxf3 12. Qxf3 f5 13. exf5 Rxf5 14. Qe4 exd4 15. Nxd4 Nxd4 16. Bxd4 d5 17. Qe3 dxc4 18. g4 Bxd4 19. cxd4 Nf4 20. gxf5 Qg5+ 21. Kh1 Qg2# 0-1

[Event "Anderssen Festival 2019"]
[Site "Wroclaw"]
[Date "2019.08.06"]
[Round "3.15"]
[White "Czyz, Andrzej"]
[Black "Mrozinski, Mateusz"]
[Result "1-0"]
[ECO "A00"]
[WhiteElo "2000"]
[BlackElo "1620"]
[Annotator "NA"]
[PlyCount "93"]
[EventDate "2019.08.05"]
[EventType "swiss"]
[EventCountry "POL"]
[SourceTitle "playchess.com"]
[Source "ChessBase"]
[SourceQuality "1"]
[TimeControl "40/5400+30:900+30"]

1. b4 {[%emt 0:00:00]} e5 {[%emt 0:00:00]} 2. Bb2 {[%emt 0:00:00]} Bxb4 {[%emt 0:00:13]} 3. Bxe5 {[%emt 0:00:00]} Nf6 {[%emt 0:00:14]} 4. Nf3 {[%emt 0:00:00]} d5 {[%emt 0:01:26]} 5. e3 {[%emt 0:00:23]} c5 {[%emt 0:01:12]} 6. Nc3 {[%emt 0:09:44]} Nc6 {[%emt 0:06:16]} 7. Bxf6 {[%emt 0:00:31]} gxf6 {[%emt 0:01:42]} 8. Na4 {[%emt 0:02:44]} Qe7 {[%emt 0:03:34]} 9. Be2 {[%emt 0:04:47]} Rg8 {[%emt 0:03:12]} 10. g3 {[%emt 0:00:18]} Bh3 {[%emt 0:02:34]} 11. c3 {[%emt 0:00:09]} Ba5 {[%emt 0:00:49]} 12. Qb3 {[%emt 0:01:20]} c4 {[%emt 0:08:05]} 13. Qb5 {[%emt 0:02:44]} O-O-O {[%emt 0:11:29]} 14. Nd4 {[%emt 0:02:27]} Nxd4 {[%emt 0:06:16]} 15. cxd4 {[%emt 0:00:15]} Qb4 {[%emt 0:07:11]} 16. Qxb4 {[%emt 0:01:45]} Bxb4 {[%emt 0:00:02]} 17. Rb1 {[%emt 0:00:59]} a5 {[%emt 0:01:28]} 18. Bf3 {[%emt 0:00:29]} Bf5 {[%emt 0:04:13]} 19. Rb2 {[%emt 0:07:29]} Bd3 {[%emt 0:14:57]} 20. Be2 {[%emt 0:05:20]} Bxe2 {[%emt 0:05:33]} 21. Kxe2 {[%emt 0:00:04]} Kc7 {[%emt 0:00:42]} 22. Rhb1 {[%emt 0:00:14]} Rb8 {[%emt 0:06:12]} 23. Nc3 {[%emt 0:01:15]} Kc6 {[%emt 0:01:39]} 24. a4 {[%emt 0:01:38]} b6 {[%emt 0:02:12]} 25. Nb5 {[%emt 0:00:28]} Kd7 {[%emt 0:02:07]} 26. Rc2 {[%emt 0:00:27]} Rgc8 {[%emt 0:00:32]} 27. Rbc1 {[%emt 0:00:11]} f5 {[%emt 0:02:17]} 28. h3 {[%emt 0:07:00]} h5 {[%emt 0:00:33]} 29. d3 {[%emt 0:02:23]} cxd3+ {[%emt 0:02:21]} 30. Kxd3 {[%emt 0:00:07]} Rxc2 {[%emt 0:00:38]} 31. Rxc2 {[%emt 0:00:01]} Rc8 {[%emt 0:02:41]} 32. Rxc8 {[%emt 0:00:34]} Kxc8 {[%emt 0:00:01]} 33. f3 {[%emt 0:00:27]} Kd7 {[%emt 0:00:17]} 34. e4 {[%emt 0:00:15]} Be1 {[%emt 0:01:23]} 35. e5 {[%emt 0:06:35]} Bxg3 {[%emt 0:00:40]} 36. Nd6 {[%emt 0:00:08]} Kc6 {[%emt 0:01:46]} 37. Nxf5 {[%emt 0:00:16]} Bf4 {[%emt 0:00:36]} 38. Ne7+ {[%emt 0:00:03]} Kb7 {[%emt 0:01:00]} 39. Nxd5 {[%emt 0:00:02]} Bg5 {[%emt 0:00:26]} 40. Nc3 {[%emt 0:00:00]} f6 {[%emt 0:00:00]} 41. e6 {[%emt 0:00:30]} f5 {[%emt 0:04:23]} 42. d5 {[%emt 0:00:14]} Kc7 {[%emt 0:02:48]} 43. Nb5+ {[%emt 0:00:02]} Kd8 {[%emt 0:00:52]} 44. d6 {[%emt 0:00:52]} Bf6 {[%emt 0:01:41]} 45. Kc4 {[%emt 0:00:05]} Be5 {[%emt 0:00:41]} 46. Kd5 {[%emt 0:00:07]} Bf4 {[%emt 0:00:34]} 47. Kc6 {[%emt 0:00:05]} 1-0

[Event "Anderssen Festival 2019"]
[Site "Wroclaw"]
[Date "2019.08.06"]
[Round "3.16"]
[White "Kurtycz, Maciej"]
[Black "Szajda, Marcin"]
[Result "0-1"]
[ECO "C50"]
[WhiteElo "1689"]
[BlackElo "1955"]
[Annotator "NA"]
[PlyCount "67"]
[EventDate "2019.08.05"]
[EventType "swiss"]
[EventCountry "POL"]
[SourceTitle "playchess.com"]
[Source "ChessBase"]
[SourceQuality "1"]
[TimeControl "40/5400+30:900+30"]

1. e4 {[%emt 0:00:00]} e5 {[%emt 0:00:00]} 2. Nf3 {[%emt 0:00:00]} Nc6 {[%emt 0:00:00]} 3. Bc4 {[%emt 0:00:00]} Nf6 {[%emt 0:00:00]} 4. d3 {[%emt 0:00:20]} Bc5 {[%emt 0:01:20]} 5. Be3 {[%emt 0:00:38]} Bb6 {[%emt 0:00:55]} 6. O-O {[%emt 0:00:12]} O-O {[%emt 0:01:37]} 7. Nc3 {[%emt 0:01:17]} d6 {[%emt 0:01:25]} 8. h3 {[%emt 0:00:42]} Be6 {[%emt 0:07:36]} 9. Nd5 {[%emt 0:04:33]} Bxd5 {[%emt 0:01:06]} 10. exd5 {[%emt 0:00:16]} Ne7 {[%emt 0:02:52]} 11. Bg5 {[%emt 0:00:31]} Ng6 {[%emt 0:00:35]} 12. g3 {[%emt 0:11:25]} h6 {[%emt 0:03:31]} 13. Bxf6 {[%emt 0:00:06]} Qxf6 {[%emt 0:00:12]} 14. Kg2 {[%emt 0:00:40]} a6 {[%emt 0:01:33]} 15. a4 {[%emt 0:06:37]} Qe7 {[%emt 0:09:10]} 16. a5 {[%emt 0:00:47]} Ba7 {[%emt 0:00:08]} 17. b4 {[%emt 0:00:40]} f5 {[%emt 0:01:13]} 18. c3 {[%emt 0:10:43]} e4 {[%emt 0:04:59]} 19. Nd4 {[%emt 0:00:12]} Bxd4 {[%emt 0:09:19]} 20. cxd4 {[%emt 0:00:21]} e3 {[%emt 0:00:17]} 21. Ra2 {[%emt 0:09:16]} f4 {[%emt 0:09:59]} 22. Qg4 {[%emt 0:00:26]} f3+ {[%emt 0:13:16]} 23. Kg1 {[%emt 0:00:05]} e2 {[%emt 0:00:19]} 24. Re1 {[%emt 0:00:16]} Rf6 {[%emt 0:01:21]} 25. b5 {[%emt 0:04:09]} axb5 {[%emt 0:06:36]} 26. Bxb5 {[%emt 0:01:54]} Nf8 {[%emt 0:04:03]} 27. Qe4 {[%emt 0:01:26]} Qf7 {[%emt 0:01:42]} 28. Kh2 {[%emt 0:00:24]} Nh7 {[%emt 0:03:23]} 29. Qh4 {[%emt 0:03:10]} Ng5 {[%emt 0:03:13]} 30. Qg4 {[%emt 0:01:37]} Rf5 {[%emt 0:02:54]} 31. a6 {[%emt 0:01:14]} bxa6 {[%emt 0:00:46]} 32. Rxa6 {[%emt 0:00:07]} Rb8 {[%emt 0:02:35]} 33. Bc6 Nxh3 34. Bd7 0-1

[Event "Anderssen Festival 2019"]
[Site "Wroclaw"]
[Date "2019.08.06"]
[Round "3.17"]
[White "Gorny, Michael"]
[Black "Nowak, Filip"]
[Result "0-1"]
[ECO "B40"]
[WhiteElo "2067"]
[BlackElo "1589"]
[Annotator "NA"]
[PlyCount "66"]
[EventDate "2019.08.05"]
[EventType "swiss"]
[EventCountry "POL"]
[SourceTitle "playchess.com"]
[Source "ChessBase"]
[SourceQuality "1"]
[TimeControl "40/5400+30:900+30"]

1. e4 c5 2. Nf3 e6 3. b4 cxb4 4. d4 d5 5. e5 Nc6 6. Bd3 Nge7 7. a3 Ng6 8. h4 bxa3 9. c3 Bd7 10. h5 Nge7 11. Nxa3 Nc8 12. Rh3 a6 13. Kf1 f6 14. Bf4 fxe5 15. dxe5 Bc5 16. Qc2 N8e7 17. Bxh7 Qb6 18. Bg6+ Kd8 19. Ng5 Kc7 20. Nf7 Nxg6 21. hxg6 Rxh3 22. gxh3 Ne7 23. h4 Rf8 24. h5 Be8 25. Rb1 Qa5 26. Qb3 b5 27. Nc2 Bxf7 28. gxf7 Rxf7 29. Bg3 Rf3 30. Ra1 Qxc3 31. Qa2 Nf5 32. Ne1 Nxg3+ 33. Kg2 Rxf2+ 0-1

[Event "Anderssen Festival 2019"]
[Site "Wroclaw"]
[Date "2019.08.06"]
[Round "3.18"]
[White "Demski, Michal"]
[Black "Smal, Tobiasz"]
[Result "0-1"]
[ECO "B24"]
[WhiteElo "1608"]
[BlackElo "2027"]
[Annotator "NA"]
[PlyCount "90"]
[EventDate "2019.08.05"]
[EventType "swiss"]
[EventCountry "POL"]
[SourceTitle "playchess.com"]
[Source "ChessBase"]
[SourceQuality "1"]
[TimeControl "40/5400+30:900+30"]

1. e4 {[%emt 0:00:00]} c5 {[%emt 0:00:00]} 2. Nc3 {[%emt 0:00:00]} Nc6 {[%emt 0:00:00]} 3. g3 {[%emt 0:00:00]} g6 {[%emt 0:00:00]} 4. Bg2 {[%emt 0:00:18]} Bg7 {[%emt 0:00:00]} 5. Nge2 {[%emt 0:00:29]} e6 {[%emt 0:00:02]} 6. d3 {[%emt 0:00:18]} Nge7 {[%emt 0:00:05]} 7. Be3 {[%emt 0:00:21]} Nd4 {[%emt 0:00:05]} 8. Qd2 {[%emt 0:00:10]} O-O {[%emt 0:00:14]} 9. O-O {[%emt 0:01:58]} d6 {[%emt 0:01:50]} 10. f4 {[%emt 0:00:33]} Rb8 {[%emt 0:00:32]} 11. Nc1 {[%emt 0:02:26]} b5 {[%emt 0:00:17]} 12. Nd1 {[%emt 0:00:16]} b4 {[%emt 0:03:42]} 13. c3 {[%emt 0:05:13]} Ndc6 {[%emt 0:00:07]} 14. d4 {[%emt 0:06:05]} bxc3 {[%emt 0:00:28]} 15. bxc3 {[%emt 0:01:04]} Na5 {[%emt 0:03:56]} 16. Qf2 {[%emt 0:08:03]} cxd4 {[%emt 0:00:14]} 17. Bxd4 {[%emt 0:00:43]} Nec6 {[%emt 0:00:38]} 18. Bxg7 {[%emt 0:03:18]} Kxg7 {[%emt 0:00:01]} 19. Ne3 {[%emt 0:00:52]} Ba6 {[%emt 0:10:33]} 20. Rd1 {[%emt 0:06:29]} Nc4 {[%emt 0:00:27]} 21. Nxc4 {[%emt 0:01:19]} Bxc4 {[%emt 0:00:02]} 22. Kh1 {[%emt 0:02:59]} Qa5 {[%emt 0:02:18]} 23. Qf3 {[%emt 0:07:46]} d5 {[%emt 0:00:59]} 24. Nb3 {[%emt 0:05:37]} Qb5 {[%emt 0:03:45]} 25. f5 {[%emt 0:06:38]} h6 {[%emt 0:00:58]} 26. Qe3 {[%emt 0:06:31]} dxe4 {[%emt 0:01:22]} 27. fxg6 {[%emt 0:02:51]} f5 {[%emt 0:02:51]} 28. Rd6 {[%emt 0:02:51]} Rfd8 {[%emt 0:09:14]} 29. Rad1 {[%emt 0:02:56]} Bxb3 {[%emt 0:01:09]} 30. axb3 {[%emt 0:01:39]} Qxb3 {[%emt 0:00:30]} 31. Rxd8 {[%emt 0:02:48]} Rxd8 {[%emt 0:00:06]} 32. Rxd8 {[%emt 0:00:10]} Qb1+ {[%emt 0:00:15]} 33. Qg1 {[%emt 0:01:31]} Qxg1+ {[%emt 0:00:06]} 34. Kxg1 {[%emt 0:00:04]} Nxd8 {[%emt 0:00:04]} 35. c4 {[%emt 0:00:10]} Kxg6 {[%emt 0:00:05]} 36. c5 {[%emt 0:00:13]} Kf6 {[%emt 0:00:30]} 37. Kf2 {[%emt 0:00:11]} Ke5 {[%emt 0:00:05]} 38. Ke3 {[%emt 0:00:17]} Kd5 {[%emt 0:00:08]} 39. Kf4 {[%emt 0:00:11]} Kxc5 {[%emt 0:00:51]} 40. g4 {[%emt 0:00:00]} Kd4 {[%emt 0:00:00]} 41. g5 {[%emt 0:04:19]} hxg5+ {[%emt 0:00:46]} 42. Kxg5 {[%emt 0:00:03]} a5 {[%emt 0:00:56]} 43. h4 {[%emt 0:03:09]} a4 {[%emt 0:00:05]} 44. h5 {[%emt 0:00:32]} a3 {[%emt 0:00:08]} 45. h6 {[%emt 0:01:21]} Nf7+ 0-1

[Event "Anderssen Festival 2019"]
[Site "Wroclaw"]
[Date "2019.08.06"]
[Round "3.19"]
[White "Piekielny, Pawel"]
[Black "Plichta, Krzysztof"]
[Result "1/2-1/2"]
[ECO "B19"]
[WhiteElo "1985"]
[BlackElo "1582"]
[Annotator "NA"]
[PlyCount "86"]
[EventDate "2019.08.05"]
[EventType "swiss"]
[EventCountry "POL"]
[SourceTitle "playchess.com"]
[Source "ChessBase"]
[SourceQuality "1"]
[TimeControl "40/5400+30:900+30"]

1. e4 {[%emt 0:00:00]} c6 {[%emt 0:00:00]} 2. d4 {[%emt 0:00:00]} d5 {[%emt 0:00:00]} 3. Nc3 {[%emt 0:00:00]} dxe4 {[%emt 0:00:00]} 4. Nxe4 {[%emt 0:00:00]} Bf5 {[%emt 0:00:00]} 5. Ng3 {[%emt 0:00:00]} Bg6 {[%emt 0:00:00]} 6. h4 {[%emt 0:00:00]} h6 {[%emt 0:00:01]} 7. Nf3 {[%emt 0:00:00]} Nd7 {[%emt 0:00:07]} 8. h5 {[%emt 0:00:01]} Bh7 {[%emt 0:00:06]} 9. Bd3 {[%emt 0:00:04]} Bxd3 {[%emt 0:00:08]} 10. Qxd3 {[%emt 0:00:05]} e6 {[%emt 0:00:13]} 11. Bd2 {[%emt 0:00:04]} Ngf6 {[%emt 0:00:17]} 12. O-O-O {[%emt 0:00:08]} Qb6 {[%emt 0:00:13]} 13. Ne5 {[%emt 0:00:56]} Nxe5 {[%emt 0:00:37]} 14. dxe5 {[%emt 0:00:05]} Rd8 {[%emt 0:03:01]} 15. Qe2 {[%emt 0:04:40]} Nd5 {[%emt 0:07:13]} 16. c4 {[%emt 0:09:56]} Nb4 {[%emt 0:01:35]} 17. Bxb4 {[%emt 0:00:05]} Bxb4 {[%emt 0:01:57]} 18. Rxd8+ {[%emt 0:00:20]} Kxd8 {[%emt 0:00:27]} 19. Rd1+ {[%emt 0:03:41]} Kc8 {[%emt 0:01:20]} 20. a3 {[%emt 0:13:31]} Be7 {[%emt 0:01:34]} 21. Ne4 {[%emt 0:02:55]} Rd8 {[%emt 0:03:11]} 22. Rxd8+ {[%emt 0:02:19]} Qxd8 {[%emt 0:02:09]} 23. Qd2 {[%emt 0:03:35]} Qb6 {[%emt 0:09:39]} 24. Qd3 {[%emt 0:06:22]} Qc7 {[%emt 0:09:04]} 25. Qg3 {[%emt 0:13:45]} f6 {[%emt 0:08:06]} 26. exf6 {[%emt 0:08:02]} Qxg3 {[%emt 0:08:29]} 27. Nxg3 {[%emt 0:00:55]} gxf6 {[%emt 0:00:34]} 28. Ne2 {[%emt 0:02:35]} Kd7 {[%emt 0:04:48]} 29. Kc2 {[%emt 0:00:18]} Kd6 {[%emt 0:01:55]} 30. Nf4 {[%emt 0:06:51]} f5 {[%emt 0:01:46]} 31. Ng6 {[%emt 0:09:19]} Bf6 {[%emt 0:01:22]} 32. b3 {[%emt 0:01:19]} a5 {[%emt 0:05:30]} 33. a4 {[%emt 0:01:21]} e5 {[%emt 0:05:33]} 34. f3 {[%emt 0:08:14]} e4 {[%emt 0:04:13]} 35. Nf4 {[%emt 0:00:54]} Ke5 {[%emt 0:01:29]} 36. Ne2 {[%emt 0:00:06]} exf3 {[%emt 0:01:32]} 37. gxf3 {[%emt 0:00:05]} Be7 {[%emt 0:03:10]} 38. Kd3 {[%emt 0:00:41]} Bc5 {[%emt 0:01:11]} 39. f4+ {[%emt 0:00:30]} Ke6 {[%emt 0:04:18]} 40. Nc1 {[%emt 0:00:00]} Bd6 {[%emt 0:00:00]} 41. Ke3 {[%emt 0:05:10]} Bc5+ {[%emt 0:04:14]} 42. Kf3 Bb6 43. Nd3 Bd4 {Ke4 Ke5+} 1/2-1/2

[Event "Anderssen Festival 2019"]
[Site "Wroclaw"]
[Date "2019.08.06"]
[Round "3.20"]
[White "Lesniak, Szymon"]
[Black "Jablonska, Sabina"]
[Result "1-0"]
[ECO "A36"]
[WhiteElo "1534"]
[BlackElo "1963"]
[Annotator "NA"]
[PlyCount "117"]
[EventDate "2019.08.05"]
[EventType "swiss"]
[EventCountry "POL"]
[SourceTitle "playchess.com"]
[Source "ChessBase"]
[SourceQuality "1"]
[TimeControl "40/5400+30:900+30"]

1. c4 c5 2. g3 g6 3. Bg2 Bg7 4. Nc3 Nc6 5. a3 d6 6. b4 e5 7. bxc5 dxc5 8. Rb1 Nge7 9. d3 h6 10. Nf3 Rb8 11. O-O f5 12. Be3 e4 13. dxe4 Bxc3 14. Qc2 Bd4 15. Rfd1 fxe4 16. Nxd4 Nxd4 17. Bxd4 cxd4 18. Bxe4 Bf5 19. Qa4+ Kf7 20. Bxf5 Nxf5 21. Qxa7 Qc7 22. g4 Ne7 23. Qxd4 Rhd8 24. Qe4 Qc6 25. Qf4+ Kg7 26. Qe5+ Kf7 27. c5 Qf6 28. Qxf6+ Kxf6 29. Rb6+ Kf7 30. Rxd8 Rxd8 31. Rxb7 Ra8 32. Rb3 Ke6 33. Re3+ Kd7 34. Kg2 Ra5 35. Rc3 Nd5 36. Rd3 Kc6 37. e3 Kxc5 38. Kf3 Kc4 39. Rd4+ Kc5 40. a4 Nc3 41. Rd8 Nxa4 42. Rh8 Kd5 43. Rxh6 Ra6 44. h4 Ke5 45. Kg3 Rf6 46. f4+ Ke4 47. f5 Kxe3 48. Rxg6 Rf8 49. Re6+ Kd4 50. Kf4 Nc3 51. h5 Rg8 52. g5 Nd5+ 53. Kg4 Ne3+ 54. Rxe3 Kxe3 55. h6 Rh8 56. f6 Ke4 57. f7 Ke5 58. g6 Rxh6 59. Kg5 1-0